bitfinex/quotes_SOLUSD_20230111
["timestamp","ask_amount","ask_price","bid_price","bid_amount"]
[1673448291512,0.96,15.743,15.731,20.96]
[1673448291723,0.96,15.743,15.732,0.96]
[1673448293006,118.5064767,15.744,15.732,0.96]
[1673448293217,118.5064767,15.744,15.733,20.0]
[1673448293420,5.4773767,15.744,15.734,0.96]
[1673448293614,5.4773767,15.744,15.735,0.96]
[1673448293820,5.4773767,15.744,15.736,20.96]
[1673448294034,5.4773767,15.744,15.737,20.96]
[1673448294244,5.4773767,15.744,15.738,20.96]
[1673448294470,5.4773767,15.744,15.739,0.96]
[1673448294674,5.4773767,15.744,15.74,20.0]
[1673448299926,5.4773767,15.744,15.741,1.92]
[1673448301202,18.34,15.75,15.741,1.92]
[1673448301412,47.6,15.758,15.742,67.65]
[1673448301630,19.14496728,15.756,15.742,20.0]
[1673448302052,47.61,15.755,15.742,20.0]
[1673448302777,18.34,15.75,15.738,67.66]
[1673448302993,20.0,15.748,15.728,116.5843]
[1673448303192,20.0,15.747,15.73,20.0]
[1673448303402,0.96,15.746,15.73,20.0]
[1673448303622,0.96,15.745,15.73,20.0]
[1673448303821,0.96,15.744,15.73,20.0]
[1673448304040,47.64,15.745,15.73,20.0]
[1673448304360,47.64,15.746,15.732,47.68]
[1673448304552,20.96,15.745,15.732,47.68]
[1673448304756,0.96,15.744,15.731,67.69]
[1673448304972,0.96,15.744,15.731,20.0]
[1673448305188,48.61,15.744,15.731,20.0]
[1673448305396,0.96,15.743,15.731,20.0]
[1673448309591,0.96,15.743,15.73,20.0]
[1673448309797,18.34,15.74,15.727,67.7]
[1673448310136,18.34,15.74,15.729,20.0]
[1673448310541,18.34,15.74,15.729,67.69]
[1673448311287,0.96,15.739,15.729,20.0]
[1673448311490,0.96,15.739,15.726,20.0]
[1673448311491,48.62,15.739,15.726,20.0]
[1673448311707,20.0,15.738,15.725,20.0]
[1673448311923,0.96,15.737,15.725,20.0]
[1673448313183,48.63,15.737,15.724,47.71]
[1673448313396,132.1967,15.736,15.724,47.71]
[1673448313608,0.96,15.735,15.724,47.71]
[1673448314125,0.96,15.735,15.721,20.0]
[1673448314126,0.96,15.734,15.722,67.71]
[1673448314347,0.96,15.733,15.722,67.71]
[1673448315917,0.96,15.733,15.722,47.71]
[1673448316127,0.96,15.732,15.721,47.72]
[1673448316336,0.96,15.731,15.721,47.72]
[1673448316554,47.68,15.734,15.72,47.72]
[1673448316768,18.34,15.73,15.72,47.72]
[1673448316981,0.96,15.729,15.719,109.7489]
[1673448318440,0.96,15.729,15.718,47.73]
[1673448318660,0.96,15.729,15.714,20.0]
[1673448318661,21.92,15.729,15.717,47.73]
[1673448318886,65.65,15.728,15.713,47.74]
[1673448319065,18.18,15.72,15.711,47.75]
[1673448320437,135.3922,15.725,15.711,47.75]
[1673448320643,0.96,15.724,15.711,47.75]
[1673448320851,20.0,15.725,15.712,20.0]
[1673448321184,20.0,15.725,15.713,1.92]
[1673448322238,0.96,15.724,15.713,1.92]
[1673448322554,0.96,15.724,15.711,47.75]
[1673448322865,0.96,15.724,15.71,33.0]
[1673448322866,18.34,15.72,15.71,33.0]
[1673448323060,1.92,15.719,15.71,33.0]
[1673448323936,21.92,15.719,15.71,33.0]
[1673448324140,20.0,15.718,15.71,33.0]
[1673448324354,1.92,15.717,15.71,33.0]
[1673448324565,21.92,15.717,15.71,33.0]
[1673448324775,20.0,15.716,15.71,33.0]
[1673448324971,21.92,15.715,15.71,33.0]
[1673448326455,20.0,15.716,15.71,33.0]
[1673448326648,20.0,15.717,15.71,33.0]
[1673448327068,132.6702,15.72,15.71,33.0]
[1673448327279,132.6702,15.72,15.711,47.75]
[1673448327914,132.6702,15.72,15.712,20.0]
[1673448328344,132.6702,15.72,15.713,47.74]
[1673448328546,18.2,15.72,15.713,47.74]
[1673448328762,20.0,15.725,15.713,47.74]
[1673448328988,118.57503903,15.727,15.713,47.74]
[1673448329175,86.84496728,15.727,15.713,47.74]
[1673448329508,66.84496728,15.727,15.713,47.74]
[1673448329723,66.84496728,15.727,15.714,21.92]
[1673448329724,19.14496728,15.727,15.714,21.92]
[1673448329916,0.96,15.726,15.714,21.92]
[1673448330120,19.14496728,15.727,15.715,47.73]
[1673448330332,19.14496728,15.727,15.716,1.92]
[1673448330767,20.0,15.726,15.715,47.73]
[1673448331290,20.0,15.725,15.713,47.74]
[1673448331505,20.96,15.725,15.713,47.74]
[1673448332116,20.0,15.726,15.713,47.74]
[1673448332325,0.96,15.725,15.714,1.92]
[1673448332546,0.96,15.726,15.714,1.92]
[1673448332762,0.96,15.726,15.715,47.73]
[1673448333386,39.14496728,15.727,15.714,20.0]
[1673448333599,20.0,15.727,15.714,20.0]
[1673448333816,20.0,15.727,15.715,47.73]
[1673448334430,18.45,15.73,15.716,40.0]
[1673448334647,18.45,15.73,15.717,1.92]
[1673448334853,18.45,15.73,15.717,49.65]
[1673448335063,18.45,15.73,15.718,20.0]
[1673448335273,18.45,15.73,15.719,1.92]
[1673448335484,18.45,15.73,15.719,49.64]
[1673448335695,18.45,15.73,15.72,20.0]
[1673448335998,70.02000631,15.737,15.721,1.92]
[1673448335999,50.87503903,15.737,15.721,1.92]
[1673448336218,20.0,15.735,15.721,49.64]
[1673448336739,20.0,15.735,15.722,20.0]
[1673448336949,20.0,15.735,15.723,1.92]
[1673448337161,20.0,15.735,15.723,49.63]
[1673448337799,1.92,15.734,15.723,47.71]
[1673448338221,27.58,15.73,15.721,47.72]
[1673448338436,27.58,15.73,15.72,111.7865]
[1673448338753,27.58,15.73,15.721,47.72]
[1673448341688,27.58,15.73,15.722,20.0]
[1673448341899,20.0,15.735,15.723,0.96]
[1673448342108,20.0,15.735,15.724,0.96]
[1673448342319,20.0,15.735,15.724,48.67]
[1673448343173,1.92,15.734,15.724,47.71]
[1673448343485,21.92,15.734,15.723,47.71]
[1673448343676,21.92,15.734,15.722,47.71]
[1673448343887,21.92,15.734,15.721,47.72]
[1673448344630,21.92,15.734,15.722,20.0]
[1673448344840,1.92,15.734,15.722,20.0]
[1673448345062,1.92,15.734,15.723,47.71]
[1673448346648,1.92,15.734,15.724,20.0]
[1673448347087,0.96,15.734,15.724,20.0]
[1673448347914,20.0,15.735,15.724,20.0]
[1673448348133,20.0,15.735,15.725,48.66]
[1673448348960,20.0,15.735,15.723,47.71]
[1673448349173,20.0,15.734,15.723,47.71]
[1673448349397,0.96,15.733,15.721,47.72]
[1673448349601,20.0,15.734,15.722,1.92]
[1673448349812,40.0,15.735,15.722,1.92]
[1673448350022,0.96,15.734,15.723,47.71]
[1673448351374,20.0,15.735,15.724,20.96]
[1673448351590,20.0,15.735,15.725,0.96]
[1673448351811,20.0,15.735,15.725,48.66]
[1673448352023,20.0,15.735,15.726,0.96]
[1673448354359,20.0,15.735,15.725,47.7]
[1673448354674,20.0,15.734,15.722,47.71]
[1673448354867,20.0,15.735,15.722,47.71]
[1673448355404,20.0,15.735,15.723,20.0]
[1673448355809,20.0,15.735,15.724,49.63]
[1673448356670,20.0,15.735,15.724,1.92]
[1673448357819,20.0,15.735,15.725,47.7]
[1673448358034,20.0,15.735,15.726,1.92]
[1673448358876,20.0,15.735,15.726,49.62]
[1673448359717,47.66,15.739,15.727,20.0]
[1673448359906,91.74,15.74,15.728,1.92]
[1673448359907,65.87,15.74,15.728,1.92]
[1673448360246,0.96,15.739,15.728,1.92]
[1673448361171,65.87,15.74,15.728,21.92]
[1673448361503,18.21,15.74,15.73,20.0]
[1673448362239,18.21,15.74,15.729,47.69]
[1673448362868,1.92,15.739,15.728,132.4938]
[1673448363180,0.96,15.739,15.728,132.4938]
[1673448363392,0.96,15.739,15.729,20.0]
[1673448365819,1.92,15.739,15.729,20.0]
[1673448366027,0.96,15.739,15.729,20.0]
[1673448366439,18.21,15.74,15.73,0.96]
[1673448367288,18.21,15.74,15.731,0.96]
[1673448367711,116.0502,15.744,15.732,47.68]
[1673448368326,116.0502,15.744,15.732,20.0]
[1673448369812,116.0502,15.744,15.733,1.92]
[1673448370023,116.0502,15.744,15.733,49.6]
[1673448370214,116.0502,15.744,15.734,20.0]
[1673448370419,116.0502,15.744,15.735,1.92]
[1673448370634,116.0502,15.744,15.736,20.0]
[1673448370865,47.63,15.749,15.737,21.92]
[1673448371061,131.8527,15.75,15.737,69.59]
[1673448371274,131.8527,15.75,15.738,20.0]
[1673448372234,131.8527,15.75,15.739,1.92]
[1673448375067,131.8527,15.75,15.738,20.0]
[1673448376418,131.8527,15.75,15.739,0.96]
[1673448376623,131.8527,15.75,15.74,0.96]
[1673448377382,18.36,15.75,15.74,0.96]
[1673448377692,18.36,15.75,15.741,0.96]
[1673448377904,18.36,15.75,15.742,0.96]
[1673448378093,18.36,15.75,15.741,0.96]
[1673448378720,18.36,15.75,15.742,0.96]
[1673448379253,18.36,15.75,15.741,0.96]
[1673448379792,18.36,15.75,15.742,0.96]
[1673448380843,18.36,15.75,15.743,0.96]
[1673448381786,47.63,15.751,15.743,0.96]
[1673448382001,47.61,15.755,15.744,0.96]
[1673448383353,47.61,15.755,15.74,20.0]
[1673448383564,20.0,15.754,15.74,20.0]
[1673448384094,47.62,15.753,15.74,20.0]
[1673448384630,112.8465,15.752,15.741,1.92]
[1673448385769,47.61,15.755,15.741,1.92]
[1673448386537,47.61,15.755,15.741,49.58]
[1673448386847,1.92,15.754,15.741,1.92]
[1673448387364,47.62,15.753,15.741,1.92]
[1673448388093,18.24,15.75,15.738,20.0]
[1673448388296,18.24,15.75,15.737,40.0]
[1673448388297,0.96,15.749,15.737,20.0]
[1673448388615,48.59,15.749,15.737,20.0]
[1673448389148,47.63,15.749,15.737,20.0]
[1673448389359,47.63,15.749,15.738,1.92]
[1673448390209,47.63,15.749,15.738,21.92]
[1673448392215,18.24,15.75,15.738,21.92]
[1673448392615,18.24,15.75,15.738,20.0]
[1673448393477,47.63,15.749,15.738,20.0]
[1673448393793,47.63,15.749,15.738,67.66]
[1673448394006,18.24,15.75,15.738,20.0]
[1673448394214,18.24,15.75,15.739,1.92]
[1673448397666,110.2672,15.752,15.739,1.92]
[1673448397870,47.63,15.751,15.741,20.0]
[1673448398081,47.61,15.755,15.742,1.92]
[1673448398518,20.0,15.754,15.742,1.92]
[1673448399131,47.62,15.753,15.742,1.92]
[1673448399565,118.65,15.752,15.742,1.92]
[1673448401556,118.65,15.752,15.742,21.92]
[1673448402197,47.61,15.755,15.742,21.92]
[1673448402511,13.75,15.75,15.742,21.92]
[1673448403043,13.75,15.75,15.742,1.92]
[1673448403249,13.75,15.75,15.742,0.96]
[1673448403872,13.75,15.75,15.742,20.96]
[1673448404078,13.75,15.75,15.742,0.96]
[1673448404403,13.75,15.75,15.736,20.0]
[1673448404404,47.63,15.749,15.736,20.0]
[1673448404592,20.0,15.748,15.73,47.69]
[1673448404802,13.64,15.74,15.73,167.0507]
[1673448405023,13.64,15.74,15.73,119.3607]
[1673448406383,48.62,15.739,15.722,47.71]
[1673448406593,68.61,15.74,15.726,47.7]
[1673448406803,0.96,15.739,15.723,20.0]
[1673448407027,20.96,15.738,15.722,47.71]
[1673448407246,13.75,15.73,15.722,47.71]
[1673448407451,13.75,15.73,15.721,47.72]
[1673448407647,13.75,15.73,15.718,47.73]
[1673448407858,13.75,15.73,15.71,46.88]
[1673448407859,13.73,15.73,15.714,20.0]
[1673448408067,13.73,15.73,15.714,39.14496728]
[1673448408068,1.92,15.729,15.714,39.14496728]
[1673448408278,1.92,15.729,15.715,47.73]
[1673448408493,47.69,15.728,15.714,67.74]
[1673448408906,68.89,15.73,15.714,86.88496728]
[1673448408907,47.69,15.729,15.714,86.88496728]
[1673448409124,68.89,15.73,15.714,86.88496728]
[1673448410398,68.89,15.73,15.715,1.92]
[1673448410600,13.75,15.73,15.715,41.06496728]
[1673448410809,47.68,15.734,15.716,66.87496728]
[1673448411133,13.72,15.73,15.717,40.96]
[1673448411349,13.72,15.73,15.718,0.96]
[1673448411542,13.72,15.73,15.719,0.96]
[1673448411756,13.72,15.73,15.72,0.96]
[1673448411954,13.72,15.73,15.721,0.96]
[1673448412166,13.72,15.73,15.721,20.96]
[1673448412919,13.72,15.73,15.722,0.96]
[1673448413651,13.72,15.73,15.721,20.96]
[1673448414166,13.72,15.73,15.718,67.73]
[1673448414370,0.96,15.729,15.717,40.0]
[1673448414586,0.96,15.729,15.717,20.0]
[1673448414805,68.88,15.73,15.716,40.0]
[1673448415022,47.69,15.729,15.716,40.0]
[1673448415237,47.69,15.729,15.717,47.73]
[1673448415440,13.75,15.73,15.718,20.0]
[1673448415760,13.75,15.73,15.718,40.0]
[1673448415962,13.75,15.73,15.719,1.92]
[1673448416488,13.75,15.73,15.72,47.72]
[1673448416702,13.75,15.73,15.721,20.96]
[1673448417208,13.75,15.73,15.722,0.96]
[1673448418691,13.75,15.73,15.721,20.96]
[1673448419527,13.75,15.73,15.722,0.96]
[1673448420163,13.75,15.73,15.721,20.96]
[1673448420908,18.39,15.73,15.721,20.96]
[1673448421334,18.39,15.73,15.722,0.96]
[1673448423328,18.39,15.73,15.721,20.96]
[1673448423852,18.39,15.73,15.722,1.92]
[1673448425442,18.39,15.73,15.722,0.96]
[1673448425970,18.39,15.73,15.721,20.0]
[1673448426365,0.96,15.729,15.719,20.0]
[1673448426574,0.96,15.729,15.718,40.0]
[1673448427329,0.96,15.728,15.718,40.0]
[1673448427536,0.96,15.727,15.718,20.0]
[1673448428468,91.95,15.73,15.718,20.0]
[1673448428679,47.69,15.729,15.719,20.0]
[1673448428884,0.96,15.728,15.719,20.0]
[1673448429314,1.92,15.729,15.719,20.0]
[1673448429837,47.69,15.728,15.707,47.76]
[1673448430052,18.4,15.72,15.707,166.687]
[1673448430276,0.96,15.719,15.707,118.927]
[1673448430675,48.68,15.719,15.708,20.0]
[1673448430886,66.12,15.72,15.708,20.0]
[1673448431086,18.4,15.72,15.707,118.927]
[1673448431533,21.92,15.719,15.707,118.927]
[1673448431731,21.92,15.719,15.705,47.76]
[1673448431732,20.0,15.718,15.705,47.76]
[1673448432065,67.73,15.718,15.698,156.0753]
[1673448432468,0.96,15.717,15.698,156.0753]
[1673448432789,0.96,15.716,15.699,20.0]
[1673448433005,0.96,15.715,15.699,20.0]
[1673448433192,0.96,15.715,15.7,47.78]
[1673448433407,54.97237236,15.714,15.71,20.4824]
[1673448433611,20.0,15.713,15.71,20.4824]
[1673448433836,20.0,15.711,15.694,20.0]
[1673448434047,93.83,15.71,15.695,47.8]
[1673448434250,20.0,15.709,15.695,47.8]
[1673448434676,1.92,15.708,15.695,47.8]
[1673448434881,64.26196355,15.708,15.694,47.8]
[1673448435092,18.33,15.7,15.695,20.0]
[1673448435312,62.34196355,15.707,15.695,20.0]
[1673448435626,62.34196355,15.707,15.691,40.0]
[1673448435948,47.75,15.709,15.691,103.65]
[1673448436143,18.27,15.71,15.692,47.8]
[1673448436353,18.27,15.71,15.693,20.0]
[1673448436567,18.27,15.71,15.694,20.0]
[1673448436778,18.27,15.71,15.695,20.0]
[1673448436989,18.27,15.71,15.696,0.96]
[1673448437189,18.27,15.71,15.697,0.96]
[1673448437403,18.27,15.71,15.698,20.96]
[1673448437611,18.27,15.71,15.699,0.96]
[1673448437945,18.27,15.71,15.698,68.75]
[1673448437946,18.27,15.71,15.698,67.79]
[1673448438468,18.27,15.71,15.698,20.0]
[1673448438994,18.27,15.71,15.698,67.79]
[1673448439311,1.92,15.709,15.698,67.79]
[1673448439921,1.92,15.709,15.698,47.79]
[1673448440133,1.92,15.709,15.696,47.79]
[1673448440342,1.92,15.709,15.697,20.0]
[1673448440757,21.92,15.709,15.697,20.0]
[1673448440967,21.92,15.709,15.696,20.0]
[1673448441406,1.92,15.709,15.697,47.79]
[1673448441600,1.92,15.709,15.698,20.0]
[1673448441807,61.92196355,15.709,15.698,20.0]
[1673448442130,20.0,15.708,15.696,20.0]
[1673448442341,1.92,15.707,15.696,20.0]
[1673448442552,1.92,15.707,15.697,47.79]
[1673448442763,1.92,15.707,15.698,20.0]
[1673448443490,1.92,15.707,15.696,20.0]
[1673448443922,1.92,15.707,15.697,47.79]
[1673448444254,1.92,15.707,15.698,20.0]
[1673448444468,147.76303903,15.71,15.698,20.0]
[1673448444662,91.87,15.71,15.699,49.7]
[1673448444874,18.27,15.71,15.699,49.7]
[1673448445405,18.27,15.71,15.7,20.0]
[1673448445814,18.27,15.71,15.702,20.0]
[1673448446562,60.00196355,15.715,15.703,1.92]
[1673448446884,60.00196355,15.715,15.703,49.69]
[1673448447411,60.00196355,15.715,15.704,20.0]
[1673448447614,60.00196355,15.715,15.705,0.96]
[1673448447933,60.00196355,15.715,15.705,47.76]
[1673448448145,60.00196355,15.715,15.702,20.0]
[1673448448146,60.00196355,15.715,15.704,47.77]
[1673448448350,107.73196355,15.715,15.702,20.0]
[1673448448553,18.3,15.71,15.702,20.0]
[1673448448760,18.3,15.71,15.7,67.78]
[1673448448969,18.3,15.71,15.7,47.78]
[1673448449174,20.0,15.708,15.698,20.0]
[1673448449387,1.92,15.707,15.696,20.0]
[1673448449814,1.92,15.707,15.697,47.79]
[1673448450025,1.92,15.707,15.698,20.0]
[1673448450656,1.92,15.707,15.697,20.0]
[1673448450868,1.92,15.707,15.697,67.79]
[1673448451319,1.92,15.707,15.697,47.79]
[1673448451507,66.90496728,15.706,15.694,20.0]
[1673448451702,20.96,15.705,15.694,20.0]
[1673448451914,20.0,15.705,15.694,20.0]
[1673448452119,0.96,15.704,15.694,20.0]
[1673448452550,0.96,15.705,15.694,20.0]
[1673448452973,1.92,15.705,15.694,20.0]
[1673448453295,0.96,15.705,15.694,20.0]
[1673448453500,1.92,15.705,15.694,20.0]
[1673448453705,0.96,15.705,15.694,20.0]
[1673448454115,1.92,15.705,15.694,20.0]
[1673448454325,0.96,15.705,15.694,20.0]
[1673448455608,0.96,15.705,15.695,47.8]
[1673448455807,0.96,15.705,15.696,20.0]
[1673448456434,20.0,15.706,15.696,20.0]
[1673448456754,18.32,15.71,15.697,69.71]
[1673448456952,18.32,15.71,15.698,20.0]
[1673448457163,18.32,15.71,15.699,1.92]
[1673448457387,18.32,15.71,15.7,20.0]
[1673448457601,18.32,15.71,15.701,0.96]
[1673448457790,18.32,15.71,15.702,0.96]
[1673448458003,18.32,15.71,15.702,20.96]
[1673448458216,18.32,15.71,15.701,48.74]
[1673448458421,18.32,15.71,15.701,47.78]
[1673448458645,18.32,15.71,15.698,20.0]
[1673448458646,18.32,15.71,15.699,47.78]
[1673448458961,18.32,15.71,15.7,21.92]
[1673448459382,18.32,15.71,15.701,47.78]
[1673448460007,18.32,15.71,15.702,20.96]
[1673448460222,18.32,15.71,15.703,0.96]
[1673448460843,18.32,15.71,15.702,20.0]
[1673448461055,162.5731,15.716,15.703,1.92]
[1673448461271,20.0,15.715,15.703,47.77]
[1673448461903,20.0,15.715,15.704,1.92]
[1673448462325,20.0,15.715,15.704,21.92]
[1673448463892,0.96,15.714,15.704,20.0]
[1673448467059,20.0,15.715,15.704,20.0]
[1673448469272,0.96,15.714,15.704,20.0]
[1673448470416,20.0,15.715,15.704,20.0]
[1673448472321,71.99567745,15.715,15.704,20.0]
[1673448472740,0.96,15.714,15.704,20.0]
[1673448473685,71.99567745,15.715,15.704,20.0]
[1673448475474,71.99567745,15.715,15.703,47.77]
[1673448475689,1.92,15.714,15.7,20.0]
[1673448475999,101.65567745,15.714,15.701,47.78]
[1673448476401,18.43,15.71,15.701,47.78]
[1673448476613,18.43,15.71,15.7,20.0]
[1673448476840,18.43,15.71,15.701,47.78]
[1673448478312,1.92,15.709,15.698,67.79]
[1673448479480,1.92,15.709,15.698,20.0]
[1673448479873,0.96,15.709,15.698,20.0]
[1673448480084,0.96,15.709,15.7,20.0]
[1673448480521,0.96,15.709,15.699,47.78]
[1673448480839,0.96,15.708,15.697,182.4224]
[1673448481024,0.96,15.707,15.698,20.0]
[1673448481234,0.96,15.706,15.698,20.0]
[1673448481468,0.96,15.705,15.698,20.0]
[1673448481671,18.54,15.71,15.698,20.0]
[1673448481892,1.92,15.709,15.7,20.0]
[1673448482607,18.54,15.71,15.7,20.0]
[1673448483356,18.54,15.71,15.701,47.78]
[1673448483556,18.54,15.71,15.702,20.0]
[1673448484625,0.96,15.709,15.701,47.78]
[1673448484832,0.96,15.709,15.702,20.0]
[1673448484833,1.92,15.709,15.702,20.0]
[1673448485154,18.54,15.71,15.702,20.0]
[1673448486834,0.96,15.709,15.702,20.0]
[1673448488873,18.44,15.71,15.702,20.0]
[1673448490082,18.44,15.71,15.7,20.0]
[1673448490276,0.96,15.709,15.7,20.0]
[1673448490924,1.92,15.709,15.7,20.0]
[1673448491993,0.96,15.709,15.7,20.0]
[1673448492190,18.44,15.71,15.7,20.0]
[1673448492388,18.44,15.71,15.701,47.78]
[1673448492720,18.44,15.71,15.702,20.0]
[1673448493129,0.96,15.709,15.702,20.0]
[1673448493561,18.44,15.71,15.702,20.0]
[1673448493757,51.99567745,15.714,15.703,48.73]
[1673448493972,51.99567745,15.714,15.704,20.0]
[1673448494813,51.99567745,15.714,15.703,48.73]
[1673448494814,18.44,15.71,15.703,47.77]
[1673448495029,18.44,15.71,15.701,47.78]
[1673448495247,18.44,15.71,15.699,47.78]
[1673448495439,18.44,15.71,15.7,20.0]
[1673448496303,0.96,15.709,15.7,20.0]
[1673448497337,1.92,15.709,15.699,47.78]
[1673448497883,1.92,15.709,15.7,20.0]
[1673448498613,0.96,15.708,15.699,47.78]
[1673448498802,0.96,15.707,15.7,20.0]
[1673448500495,18.56,15.71,15.7,20.0]
[1673448500908,18.56,15.71,15.701,49.7]
[1673448501537,51.99567745,15.714,15.702,20.0]
[1673448501747,47.72,15.719,15.703,1.92]
[1673448501976,206.1737,15.72,15.703,68.83496728]
[1673448502192,206.1737,15.72,15.704,20.0]
[1673448502383,206.1737,15.72,15.705,1.92]
[1673448502600,206.1737,15.72,15.705,49.68]
[1673448502809,206.1737,15.72,15.707,20.0]
[1673448503028,206.1737,15.72,15.708,21.92]
[1673448503231,206.1737,15.72,15.708,69.68]
[1673448503434,206.1737,15.72,15.708,20.96]
[1673448503645,206.1737,15.72,15.708,20.0]
[1673448504091,47.72,15.719,15.708,20.0]
[1673448504306,253.8937,15.72,15.709,20.0]
[1673448504517,206.1737,15.72,15.709,20.0]
[1673448504833,57.81303903,15.719,15.709,20.0]
[1673448505255,56.85303903,15.719,15.709,20.0]
[1673448505871,55.89303903,15.719,15.709,20.0]
[1673448506733,18.31,15.72,15.711,20.0]
[1673448506950,18.31,15.72,15.712,1.92]
[1673448507349,18.31,15.72,15.712,0.96]
[1673448507785,18.31,15.72,15.711,20.0]
[1673448515256,0.96,15.719,15.711,20.0]
[1673448515993,48.69,15.718,15.704,114.407]
[1673448516316,18.44,15.71,15.704,114.407]
[1673448516535,18.44,15.71,15.702,20.0]
[1673448517358,0.96,15.709,15.701,47.78]
[1673448517559,0.96,15.709,15.699,47.78]
[1673448517779,0.96,15.708,15.695,47.8]
[1673448517990,0.96,15.708,15.697,47.79]
[1673448518202,0.96,15.707,15.695,47.8]
[1673448518528,140.08,15.71,15.696,20.0]
[1673448518743,1.92,15.709,15.696,20.0]
[1673448518960,1.92,15.709,15.697,47.79]
[1673448519357,1.92,15.709,15.698,20.0]
[1673448519677,21.92,15.709,15.697,47.79]
[1673448519895,72.65099528,15.709,15.698,20.0]
[1673448520312,52.65099528,15.709,15.698,20.0]
[1673448520508,52.65099528,15.709,15.696,67.79]
[1673448520721,50.73099528,15.709,15.697,20.0]
[1673448521048,50.73099528,15.709,15.698,20.0]
[1673448521257,50.73099528,15.709,15.698,67.79]
[1673448521456,50.73099528,15.709,15.699,20.0]
[1673448524629,92.33,15.71,15.701,20.0]
[1673448524931,66.02684033,15.734,15.701,20.0]
[1673448525144,20.0,15.727,15.702,76.19179]
[1673448525334,20.0,15.727,15.703,6.50138]
[1673448525542,20.0,15.727,15.704,85.57]
[1673448525543,67.7,15.727,15.704,85.57]
[1673448525866,67.7,15.727,15.706,20.0]
[1673448526083,18.44,15.72,15.707,21.92]
[1673448526295,18.44,15.72,15.707,69.68]
[1673448526926,18.44,15.72,15.708,20.0]
[1673448527134,18.44,15.72,15.709,1.92]
[1673448527451,18.44,15.72,15.709,49.67]